bitfinex-derivatives/quotes_BTCF0:USTF0_20251229
["timestamp","ask_amount","ask_price","bid_price","bid_amount"]
[1766980480159,0.0111138,90073.0,90059.0,0.03]
[1766980480560,0.05616655,90078.0,90059.0,0.03]
[1766980481659,0.0111141,90070.0,90059.0,0.03]
[1766980482353,0.00016655,90078.0,90059.0,0.03]
[1766980482963,0.0111139,90072.0,90059.0,0.03]
[1766980484163,0.00016655,90078.0,90059.0,0.03]
[1766980484359,0.0111134,90076.0,90059.0,0.03]
[1766980484859,0.0111107,90097.0,90060.0,0.0111152]
[1766980485059,0.15044,90096.0,90060.0,0.0411152]
[1766980485265,0.00016655,90087.0,90069.0,0.00016655]
[1766980485463,0.00016655,90087.0,90069.0,0.03016655]
[1766980485662,0.0111129,90080.0,90069.0,0.03016655]
[1766980485859,0.15044,90086.0,90069.0,0.03016655]
[1766980486759,0.0111128,90081.0,90069.0,0.03016655]
[1766980486963,0.0111124,90084.0,90069.0,0.03016655]
[1766980487762,0.01127855,90087.0,90069.0,0.03016655]
[1766980488650,0.0111124,90084.0,90070.0,0.2199537]
[1766980488855,0.01127855,90087.0,90070.0,0.2499537]
[1766980489155,0.0111106,90099.0,90077.0,0.2199537]
[1766980489460,0.0111087,90114.0,90090.0,0.2199537]
[1766980489461,0.15044,90098.0,90090.0,0.2199537]
[1766980489659,0.15044,90098.0,90090.0,0.03]
[1766980489961,0.0111107,90098.0,90090.0,0.03]
[1766980490268,0.011111,90095.0,90085.0,0.00016655]
[1766980490458,0.011111,90095.0,90085.0,0.03016655]
[1766980490758,0.00011073,90103.0,90085.0,5e-08]
[1766980491158,0.0111104,90100.0,90085.0,5e-08]
[1766980491359,0.0111115,90092.0,90085.0,5e-08]
[1766980491561,0.00011073,90103.0,90085.0,5e-08]
[1766980491857,0.0111113,90093.0,90085.0,0.0001666]
[1766980492056,0.00011073,90103.0,90085.0,0.03]
[1766980492256,0.0111109,90096.0,90085.0,0.03]
[1766980492457,5e-07,90099.0,90085.0,0.03]
[1766980492957,0.03964,90112.0,90085.0,0.03]
[1766980493162,0.11881798,90111.0,90085.0,0.03]
[1766980493365,0.0111103,90102.0,90085.0,0.03]
[1766980493551,0.0111105,90100.0,90085.0,0.03]
[1766980493756,0.011111,90096.0,90085.0,0.03]
[1766980494065,0.0111113,90093.0,90085.0,0.03]
[1766980494763,0.00016655,90100.0,90085.0,0.03]
[1766980495464,0.0111114,90092.0,90085.0,0.03]
[1766980495958,0.0111109,90097.0,90085.0,0.03]
[1766980496150,0.0111114,90092.0,90085.0,0.03]
[1766980496555,0.00016655,90100.0,90083.0,0.00016655]
[1766980496556,0.0111121,90086.0,90083.0,5e-08]
[1766980496756,0.0111121,90086.0,90075.0,0.05596]
[1766980497063,0.0111121,90086.0,90075.0,0.08596]
[1766980497858,0.0111121,90086.0,90075.0,0.03]
[1766980498760,0.0111116,90091.0,90075.0,0.03]
[1766980499060,0.011112,90087.0,90075.0,0.03]
[1766980499252,0.0111116,90091.0,90075.0,0.03]
[1766980499963,0.09444,90093.0,90075.0,0.03]
[1766980500163,0.0111117,90090.0,90075.0,0.03]
[1766980500560,0.011112,90088.0,90075.0,0.03]
[1766980500755,0.0111115,90092.0,90075.0,0.03]
[1766980500960,0.0111109,90096.0,90075.0,0.03]
[1766980501160,0.05612655,90100.0,90075.0,0.0411133]
[1766980501161,0.1055507,90098.0,90075.0,0.0411133]
[1766980501751,0.00016655,90100.0,90080.0,0.0111127]
[1766980501956,0.00016655,90100.0,90082.0,0.0111125]
[1766980502261,0.0111099,90104.0,90082.0,0.0411125]
[1766980502458,0.0111102,90102.0,90082.0,0.03]
[1766980502761,0.09444,90105.0,90082.0,0.03]
[1766980502961,0.09998695,90157.0,90082.0,0.03]
[1766980502962,0.011105,90144.0,90090.0,0.27489958]
[1766980503267,0.0111076,90123.0,90107.0,0.00016645]
[1766980503562,0.0111079,90121.0,90107.0,0.03016645]
[1766980503762,0.00016645,90126.0,90108.0,0.0111093]
[1766980503974,0.0111022,90167.0,90108.0,0.03]
[1766980504161,0.0111057,90139.0,90112.0,0.0111088]
[1766980504365,0.0111057,90139.0,90112.0,0.0411088]
[1766980504761,0.0111057,90139.0,90112.0,0.1355488]
[1766980504961,0.00016632,90135.0,90112.0,0.1355488]
[1766980505661,0.00016632,90135.0,90117.0,0.0111082]
[1766980505868,0.00221871,90143.0,90120.0,0.0111078]
[1766980506063,0.00221871,90143.0,90120.0,0.0411078]
[1766980506964,0.00221871,90143.0,90123.0,0.0111075]
[1766980507170,0.00221871,90143.0,90123.0,0.0411075]
[1766980507464,0.27489958,90170.0,90126.0,0.0111071]
[1766980507669,0.09444,90158.0,90130.0,0.00016645]
[1766980507870,0.0111037,90155.0,90130.0,0.04127305]
[1766980508470,0.0111035,90156.0,90132.0,0.0111064]
[1766980508670,0.0111039,90153.0,90133.0,0.09444]
[1766980508873,0.0111039,90153.0,90133.0,0.12444]
[1766980509371,0.0944,90159.0,90133.0,0.12444]
[1766980509567,0.0944,90159.0,90134.0,0.05596]
[1766980509765,0.0944,90159.0,90134.0,0.08596]
[1766980509972,0.0944,90159.0,90130.0,0.00016645]
[1766980510169,0.0944,90159.0,90112.0,0.0111088]
[1766980510170,0.011106,90136.0,90112.0,0.0111088]
[1766980510469,0.0944,90154.0,90122.0,0.0111076]
[1766980510766,0.0111041,90151.0,90125.0,0.0111073]
[1766980510967,0.05596,90155.0,90125.0,0.0111073]
[1766980510968,0.09890401,90152.0,90125.0,0.0411073]
[1766980511172,0.00016645,90148.0,90129.0,0.00016645]
[1766980511360,0.11000801,90152.0,90129.0,0.03016645]
[1766980511564,0.0111044,90149.0,90129.0,0.03016645]
[1766980511866,0.09890401,90152.0,90129.0,0.03016645]
[1766980512172,0.0111046,90148.0,90129.0,0.03016645]
[1766980512466,0.09890401,90152.0,90129.0,0.03016645]
[1766980513066,0.00450401,90152.0,90129.0,0.03016645]
[1766980513467,0.0111045,90149.0,90129.0,0.03016645]
[1766980513669,0.00450401,90152.0,90129.0,0.03016645]
[1766980514174,0.0111045,90148.0,90129.0,0.03016645]
[1766980514365,0.01560811,90152.0,90129.0,0.03016645]
[1766980515378,0.00450401,90152.0,90133.0,0.0111063]
[1766980515570,0.00450401,90152.0,90134.0,0.15032]
[1766980515772,0.00450401,90152.0,90134.0,0.18032]
[1766980516269,0.02403539,90151.0,90134.0,0.18032]
[1766980516475,0.0111041,90151.0,90134.0,0.18032]
[1766980517174,0.0111046,90148.0,90134.0,0.18032]
[1766980517473,0.01560801,90152.0,90134.0,0.18032]
[1766980517775,0.0111042,90150.0,90134.0,0.18032]
[1766980518271,0.0111046,90148.0,90134.0,0.18032]
[1766980518470,0.00450401,90152.0,90134.0,0.18032]
[1766980518471,0.01560811,90152.0,90134.0,0.18032]
[1766980518672,0.02403231,90151.0,90134.0,0.18032]
[1766980518867,0.02403231,90150.0,90134.0,0.18032]
[1766980519072,0.0111044,90149.0,90134.0,0.18032]
[1766980519273,0.00450401,90152.0,90134.0,0.06592]
[1766980519579,0.0111046,90147.0,90134.0,0.06592]
[1766980519772,0.02403154,90146.0,90134.0,0.03]
[1766980519973,0.02403154,90145.0,90134.0,0.01]
[1766980520170,0.0111056,90139.0,90129.0,0.05592]
[1766980520476,0.0944,90151.0,90129.0,0.08592]
[1766980520775,0.0111054,90141.0,90131.0,0.00016645]
[1766980520972,0.0111054,90141.0,90131.0,0.03016645]
[1766980521773,0.011106,90136.0,90131.0,5e-08]
[1766980521977,0.011106,90136.0,90119.0,0.05592]
[1766980522277,0.011106,90136.0,90119.0,0.08592]
[1766980522672,0.0944,90141.0,90119.0,0.08592]
[1766980522872,0.02403973,90140.0,90119.0,0.08592]
[1766980523073,0.02403973,90139.0,90120.0,0.0111079]
[1766980523377,0.0111047,90146.0,90123.0,0.0111075]
[1766980523575,0.07996228,90145.0,90125.0,0.0111072]
[1766980523878,0.11844228,90144.0,90125.0,0.0411072]
[1766980524178,0.02404228,90143.0,90125.0,0.0411072]
[1766980524377,0.02404228,90142.0,90125.0,0.0411072]
[1766980524879,0.02404228,90141.0,90125.0,0.0411072]
[1766980525080,0.02404228,90140.0,90125.0,0.03]
[1766980525382,0.02404228,90139.0,90125.0,0.03]
[1766980525677,0.03514798,90138.0,90125.0,0.03]
[1766980525891,0.02405111,90137.0,90125.0,0.03]
[1766980526075,0.0111054,90141.0,90125.0,0.03]
[1766980526376,0.0111056,90139.0,90125.0,0.03]
[1766980526576,0.02405277,90138.0,90125.0,0.03]
[1766980526967,0.02405277,90137.0,90125.0,0.03]
[1766980527173,0.02406301,90136.0,90125.0,0.03]
[1766980527471,0.02406301,90136.0,90116.0,0.0944]
[1766980527472,0.0111081,90119.0,90085.0,0.05873034]
[1766980527671,0.0944,90119.0,90100.0,0.0111103]
[1766980527871,0.0111049,90145.0,90100.0,0.03]
[1766980528072,0.02406817,90144.0,90110.0,0.011109]
[1766980528384,0.0111062,90135.0,90113.0,0.0111087]
[1766980528683,0.00016645,90133.0,90115.0,0.00016645]
[1766980528981,0.02406817,90132.0,90115.0,0.03016645]
[1766980529169,0.02406817,90132.0,90115.0,0.04127485]
[1766980529368,0.02406817,90132.0,90117.0,0.0111082]
[1766980529584,0.0944,90144.0,90117.0,0.1244]
[1766980529785,0.0111058,90138.0,90117.0,0.03]
[1766980530081,0.0111053,90142.0,90117.0,0.03]
[1766980530279,0.0111056,90139.0,90117.0,0.03]
[1766980530473,0.0111061,90136.0,90118.0,0.01109]
[1766980530669,0.05592,90135.0,90118.0,0.04109]
[1766980530880,0.0944,90134.0,90118.0,0.04109]
[1766980532072,0.0111068,90129.0,90118.0,0.04109]
[1766980532272,0.0944,90134.0,90115.0,0.00016645]
[1766980532273,0.0111069,90128.0,90115.0,0.00016645]
[1766980532473,0.0944,90134.0,90115.0,0.03016645]
[1766980532874,0.0111077,90122.0,90115.0,5e-08]
[1766980533179,0.0111096,90107.0,90087.0,0.0944]
[1766980533486,0.1055096,90107.0,90087.0,0.03]
[1766980533683,0.0111107,90098.0,90087.0,0.03]
[1766980533879,0.0944,90097.0,90087.0,0.01]
[1766980534681,0.06425092,90097.0,90087.0,0.01]
[1766980535080,0.12017092,90097.0,90087.0,0.01]
[1766980535789,0.05608645,90102.0,90087.0,0.01]
[1766980535985,0.15048645,90102.0,90087.0,0.01]
[1766980536889,0.05608645,90102.0,90087.0,0.01]
[1766980537093,0.15048645,90102.0,90087.0,0.01]
[1766980538180,0.0111103,90101.0,90087.0,0.01]
[1766980538380,0.15048645,90102.0,90073.0,0.0944]
[1766980538585,0.15048645,90102.0,90078.0,0.01014013]
[1766980538991,0.0111117,90090.0,90078.0,0.01014013]
[1766980539389,0.05592,90091.0,90078.0,0.01014013]
[1766980545398,0.05592,90091.0,90078.0,0.02125323]
[1766980545601,0.05596,90090.0,90081.0,0.0111127]
[1766980545794,0.05596,90089.0,90081.0,0.0411127]
[1766980546598,0.05596,90088.0,90081.0,0.03]
[1766980547889,0.00016645,90102.0,90083.0,0.0111125]
[1766980548195,0.11752,90101.0,90083.0,0.03]
[1766980548500,0.05596,90100.0,90088.0,0.0111118]
[1766980548694,0.0111083,90117.0,90088.0,0.03]
[1766980549004,0.01138455,90130.0,90088.0,0.03]
[1766980549005,0.0111086,90115.0,90094.0,0.011111]
[1766980549202,0.00221871,90143.0,90098.0,0.0111105]
[1766980549499,0.00016645,90125.0,90107.0,0.00016645]
[1766980549803,0.0111084,90116.0,90094.0,0.011111]
[1766980550092,0.0111077,90122.0,90096.0,0.0111108]
[1766980550296,0.1615078,90121.0,90098.0,0.0111105]
[1766980550498,0.1615078,90121.0,90098.0,0.03]
[1766980550693,0.01127385,90125.0,90100.0,0.00016645]
[1766980550899,0.0111076,90123.0,90101.0,0.0111102]
[1766980551091,0.02321161,90122.0,90101.0,0.03]
[1766980551287,0.0111078,90121.0,90101.0,0.03]
[1766980551692,0.1504,90120.0,90101.0,0.03]
[1766980552301,0.0111081,90119.0,90101.0,0.03]
[1766980553496,0.1504,90120.0,90101.0,0.03]
[1766980553898,0.0111081,90119.0,90101.0,0.03]
[1766980555290,0.011108,90119.0,90101.0,0.01]
[1766980555496,0.1504,90120.0,90101.0,0.01]
[1766980555701,0.02323383,90119.0,90101.0,0.01]
[1766980555898,0.02323383,90118.0,90101.0,0.01]
[1766980556108,0.00221945,90113.0,90101.0,0.01]
[1766980556692,0.1504,90112.0,90101.0,0.01]
[1766980556892,0.00221945,90113.0,90101.0,0.0211101]
[1766980557610,0.0518,90123.0,90102.0,0.0111101]
[1766980557797,0.0518,90123.0,90102.0,0.0411101]
[1766980558303,0.0518,90123.0,90102.0,0.03]
[1766980558504,0.05612645,90125.0,90102.0,0.03]
[1766980558808,0.09444,90124.0,90102.0,0.03]
[1766980558999,0.1055475,90124.0,90102.0,0.03]
[1766980559607,0.0111078,90121.0,90102.0,0.03]
[1766980559906,0.09444,90124.0,90102.0,0.03]
[1766980560410,0.0111076,90123.0,90102.0,0.03]
[1766980560999,0.15036,90122.0,90102.0,0.0411101]
[1766980561206,0.15036,90122.0,90102.0,0.03]
[1766980561907,0.15036,90122.0,90103.0,0.0111099]
[1766980562095,0.15036,90122.0,90103.0,0.0411099]
[1766980562299,0.00016645,90125.0,90103.0,0.03]
[1766980562500,0.00016645,90125.0,90109.0,0.0111092]
[1766980562700,0.00016645,90125.0,90109.0,0.0411092]
[1766980563409,0.05592,90124.0,90109.0,0.0411092]
[1766980564018,0.05592,90124.0,90112.0,0.0111089]
[1766980564209,0.05592,90127.0,90115.0,0.0111085]
[1766980564405,0.05592,90127.0,90115.0,0.03]
[1766980564705,0.011106,90136.0,90115.0,0.03]
[1766980564910,0.17356661,90135.0,90115.0,0.03]
[1766980565211,0.02341306,90134.0,90116.0,0.00016645]
[1766980565403,0.02324661,90133.0,90116.0,0.03016645]
[1766980565607,0.00016645,90134.0,90116.0,0.03016645]
[1766980565608,0.02324187,90132.0,90116.0,0.03016645]
[1766980565807,0.00016645,90134.0,90116.0,0.03016645]
[1766980566009,0.02324187,90133.0,90116.0,0.03016645]
[1766980566198,0.00016645,90134.0,90116.0,0.03016645]
[1766980566404,0.02323786,90133.0,90116.0,0.03016645]
[1766980566606,0.00016645,90134.0,90116.0,0.03016645]
[1766980566911,0.02323786,90133.0,90116.0,0.03016645]
[1766980567111,0.00016645,90134.0,90116.0,0.03016645]
[1766980567304,0.07915436,90133.0,90116.0,0.03016645]
[1766980567504,0.1614264,90133.0,90116.0,0.03016645]
[1766980567704,0.0111067,90130.0,90116.0,0.03016645]
[1766980567904,0.1614263,90133.0,90116.0,0.03016645]
[1766980568611,0.0111067,90131.0,90116.0,0.03016645]
[1766980569204,0.15032,90133.0,90116.0,0.03016645]
[1766980569399,0.02323029,90132.0,90116.0,0.03016645]
[1766980569614,0.02323029,90131.0,90116.0,0.03016645]
[1766980569814,0.02323029,90130.0,90116.0,0.03016645]
[1766980570018,0.02323029,90129.0,90116.0,0.03016645]
[1766980570210,0.02323029,90128.0,90116.0,0.03016645]
[1766980570416,0.02323029,90127.0,90116.0,0.03016645]
[1766980570707,0.0111065,90132.0,90116.0,0.03016645]
[1766980571011,0.0232298,90131.0,90116.0,0.03016645]
[1766980571212,0.011107,90128.0,90116.0,0.03016645]
[1766980571405,0.0232298,90127.0,90116.0,0.03016645]
[1766980571607,0.0111066,90131.0,90116.0,0.03016645]
[1766980571911,0.02322979,90130.0,90116.0,0.03016645]
[1766980572215,0.02322979,90129.0,90116.0,0.03016645]
[1766980572414,0.02322979,90128.0,90116.0,0.03016645]
[1766980572715,0.0111068,90129.0,90116.0,0.03016645]
[1766980573215,0.15032,90133.0,90116.0,0.03016645]
[1766980574111,0.00016645,90134.0,90116.0,0.03016645]
[1766980574312,0.15032,90133.0,90116.0,0.03016645]
[1766980574513,0.00016645,90134.0,90117.0,0.0111082]
[1766980574707,0.05592,90133.0,90117.0,0.0411082]
[1766980574909,0.00016645,90134.0,90117.0,0.03]
[1766980575216,0.00016645,90134.0,90121.0,0.0111077]
[1766980575514,0.05813871,90143.0,90126.0,0.0111072]
[1766980575817,0.05813871,90143.0,90126.0,0.03]
[1766980576007,0.0111055,90140.0,90126.0,0.03]
[1766980576208,0.0111058,90138.0,90126.0,0.03]
[1766980576604,0.0111061,90135.0,90126.0,0.03]
[1766980577020,0.0111057,90138.0,90126.0,0.03]
[1766980577421,0.0111061,90135.0,90126.0,0.03]
[1766980577615,0.05592,90134.0,90126.0,0.03]
[1766980578919,0.05592,90134.0,90126.0,0.01]
[1766980579212,0.05592,90134.0,90116.0,0.00016645]
[1766980579418,0.15032,90134.0,90116.0,0.01016645]
[1766980580218,0.00016645,90141.0,90120.0,0.21974896]
[1766980580416,0.0111056,90139.0,90120.0,0.03]
[1766980581217,0.0111057,90138.0,90120.0,0.03]
[1766980581517,0.0111071,90127.0,90120.0,0.03]
[1766980581717,0.0111077,90122.0,90116.0,5e-08]
[1766980582017,0.0111073,90126.0,90116.0,0.01000005]
[1766980585316,0.05592,90132.0,90116.0,0.01000005]
[1766980585520,0.0111073,90125.0,90116.0,0.01000005]
[1766980587310,0.0111072,90127.0,90116.0,0.01000005]
[1766980588319,0.0111069,90129.0,90116.0,0.01000005]
[1766980588520,0.0944,90130.0,90116.0,0.01000005]
[1766980593221,0.0111069,90129.0,90116.0,5e-08]
[1766980593419,0.0944,90130.0,90116.0,5e-08]
[1766980596113,0.15032,90129.0,90116.0,5e-08]
[1766980597718,0.05592,90128.0,90116.0,5e-08]
[1766980597922,6e-08,90128.0,90116.0,5e-08]
[1766980598410,0.05592,90132.0,90124.0,0.0111073]
[1766980598612,0.05592,90134.0,90124.0,0.03]
[1766980599415,0.00514023,90141.0,90124.0,0.03]
[1766980599620,0.15032,90140.0,90124.0,0.03]
[1766980600716,0.00514023,90141.0,90124.0,0.03]
[1766980601021,0.05592,90140.0,90130.0,0.0111067]
[1766980601215,0.05592,90140.0,90130.0,0.0411067]
[1766980601415,0.09954023,90141.0,90130.0,0.0411067]
[1766980601416,0.00514023,90141.0,90130.0,0.0411067]
[1766980601616,0.15032,90140.0,90130.0,0.0411067]
[1766980601920,0.0111062,90134.0,90114.0,0.00016645]
[1766980602120,0.0111064,90132.0,90114.0,0.03016645]
[1766980602324,0.05592,90133.0,90114.0,0.03016645]
[1766980602720,0.0670264,90133.0,90114.0,0.03016645]
[1766980603027,0.0111067,90130.0,90114.0,0.03016645]
[1766980603228,0.05592,90133.0,90114.0,0.03016645]
[1766980604226,0.0111065,90132.0,90114.0,0.03016645]
[1766980604525,0.21980361,90130.0,90114.0,0.03016645]
[1766980604728,0.31420361,90130.0,90114.0,0.03016645]
[1766980607329,0.0944,90130.0,90114.0,0.03016645]
[1766980607519,0.31420361,90130.0,90114.0,0.03016645]
[1766980608020,0.0944,90130.0,90114.0,0.03016645]
[1766980608216,0.31420361,90130.0,90115.0,0.0111085]
[1766980608515,0.31420361,90130.0,90115.0,0.0411085]
[1766980608718,0.31420361,90130.0,90115.0,0.03]
[1766980608921,0.0111069,90129.0,90115.0,0.03]
[1766980609122,0.21980361,90125.0,90115.0,0.03]
[1766980609329,0.21980361,90120.0,90115.0,0.02]
[1766980609529,0.05592,90119.0,90100.0,0.0111104]
[1766980609726,0.05592,90119.0,90100.0,0.0411104]
[1766980610124,0.05608645,90119.0,90100.0,0.04127685]
[1766980610518,0.05608645,90119.0,90100.0,0.03016645]
[1766980610927,0.21980361,90110.0,90094.0,0.03924874]
[1766980611120,0.05592,90110.0,90095.0,0.05035974]
[1766980611317,0.05592,90110.0,90095.0,0.06924874]
[1766980611524,0.05592,90110.0,90099.0,0.0111104]
[1766980611719,0.00016645,90119.0,90101.0,0.0111101]
[1766980611924,0.05592,90118.0,90101.0,0.04122108]
[1766980612120,5e-08,90119.0,90101.0,0.03011098]
[1766980612328,0.0944,90135.0,90109.0,0.21980361]
[1766980612529,0.00376,90134.0,90118.0,0.0111081]
[1766980612832,0.00376,90134.0,90118.0,0.0411081]
[1766980613842,0.00376,90134.0,90118.0,0.03]
[1766980618937,0.0111012,90175.0,90120.0,0.21980361]
[1766980619138,0.15032,90142.0,90126.0,0.0111071]
[1766980619439,0.15032,90142.0,90126.0,0.03]
[1766980620728,0.21980361,90140.0,90126.0,0.03]
[1766980620931,0.21980361,90140.0,90125.0,0.00016645]
[1766980621128,0.21980361,90135.0,90113.0,0.1613888]
[1766980621337,0.05588,90134.0,90116.0,0.0111084]
[1766980621540,0.05588,90134.0,90116.0,0.0411084]
[1766980622141,0.05588,90134.0,90116.0,0.04127485]
[1766980623845,0.05588,90134.0,90116.0,0.03016645]
[1766980625645,0.05588,90134.0,90120.0,0.0111079]
[1766980625851,0.05588,90133.0,90123.0,0.0111074]
[1766980626053,0.00500526,90143.0,90123.0,0.0111074]
[1766980626054,0.00500526,90143.0,90123.0,0.0411074]
[1766980626351,0.15028,90142.0,90125.0,0.0111072]
[1766980626545,0.15028,90142.0,90125.0,0.0411072]
[1766980628651,0.15028,90141.0,90125.0,0.0411072]
[1766980628853,0.15028,90141.0,90125.0,0.03]
[1766980629446,0.00500526,90143.0,90126.0,0.0111071]
[1766980629654,0.00500526,90143.0,90126.0,0.0411071]
[1766980630450,0.05588,90142.0,90129.0,0.0111068]
[1766980630748,0.05588,90142.0,90129.0,0.03]
[1766980634458,0.00500526,90143.0,90129.0,0.03]
[1766980634659,0.06088526,90143.0,90130.0,0.0111067]
[1766980634858,0.06088526,90143.0,90130.0,0.0411067]
[1766980635444,0.06088526,90143.0,90132.0,0.0111063]
[1766980635656,0.06088526,90143.0,90132.0,0.0411063]
[1766980636350,0.06088526,90143.0,90132.0,0.03]
[1766980636550,0.06088526,90143.0,90127.0,0.011107]
[1766980636760,0.06088526,90143.0,90127.0,0.03]
[1766980637451,0.00262024,90138.0,90127.0,0.03]
[1766980645060,0.00262024,90138.0,90127.0,0.02979]
[1766980645261,0.00262024,90138.0,90122.0,0.05588]
[1766980645459,0.00262024,90138.0,90122.0,0.08588]
[1766980647066,0.01372594,90138.0,90122.0,0.08588]
[1766980647268,0.0111063,90134.0,90122.0,0.08588]
[1766980647562,0.0111063,90134.0,90122.0,0.03]
[1766980648152,0.105506,90136.0,90122.0,0.03]
[1766980648461,0.0944,90136.0,90122.0,0.03]
[1766980648663,0.0111064,90133.0,90122.0,0.03]
[1766980648864,0.05588,90133.0,90122.0,0.03]
[1766980652673,0.0669864,90133.0,90122.0,0.02]
[1766980653973,0.0669864,90133.0,90116.0,0.05604645]
[1766980654170,0.0669864,90133.0,90116.0,0.08604645]
[1766980655075,0.0669864,90133.0,90116.0,0.03016645]
[1766980655474,0.0111067,90131.0,90116.0,0.03016645]
[1766980655772,0.21969407,90130.0,90106.0,0.03924874]
[1766980655970,0.0111072,90126.0,90106.0,0.01]
[1766980656275,0.15028,90125.0,90106.0,0.01]
[1766980656771,0.15028,90125.0,90106.0,0.01011098]
[1766980656772,0.15044645,90125.0,90106.0,0.01011098]
[1766980659973,0.0111066,90122.0,90106.0,0.01011098]
[1766980660867,0.00016645,90125.0,90106.0,0.01011098]
[1766980661079,0.0026203,90136.0,90111.0,0.0111079]
[1766980661278,0.15028,90135.0,90111.0,0.03]
[1766980661580,0.00221871,90143.0,90122.0,0.0111065]
[1766980661873,0.00221871,90143.0,90127.0,0.0111059]
[1766980662069,0.00221871,90143.0,90127.0,0.0411059]
[1766980662676,0.00221871,90143.0,90130.0,0.0111055]
[1766980662877,0.00450401,90152.0,90130.0,0.0111055]
[1766980662878,0.05588,90150.0,90130.0,0.03]
[1766980663878,0.00016645,90149.0,90130.0,0.03]
[1766980664871,0.01126975,90149.0,90130.0,0.03]
[1766980667285,0.00016645,90149.0,90130.0,0.03]
[1766980668779,0.0111034,90148.0,90130.0,0.03]
[1766980669986,0.0111039,90144.0,90130.0,0.03]
[1766980672188,0.00016645,90149.0,90130.0,0.01]
[1766980672390,0.0111044,90140.0,90130.0,0.01]
[1766980673276,0.0111041,90142.0,90130.0,0.01]
[1766980673475,0.0111044,90140.0,90130.0,0.01]
[1766980674289,0.0111047,90138.0,90130.0,0.01]
[1766980674985,0.0111042,90141.0,90130.0,0.01]
[1766980675290,0.0111047,90137.0,90130.0,0.01]
[1766980675489,0.011105,90135.0,90130.0,0.01]
[1766980675685,0.011105,90135.0,90130.0,0.03]
[1766980677392,0.011105,90135.0,90126.0,0.00016645]
[1766980677593,0.011105,90135.0,90126.0,0.03016645]
[1766980678692,0.05588,90141.0,90126.0,0.03016645]
[1766980679288,0.011105,90135.0,90126.0,0.03016645]
[1766980679693,0.0111044,90140.0,90126.0,0.03016645]
[1766980679895,0.0944,90144.0,90126.0,0.03016645]
[1766980680102,0.0111042,90142.0,90126.0,0.03016645]
[1766980680394,0.0111046,90138.0,90126.0,0.03016645]
[1766980680795,0.0111042,90141.0,90126.0,0.03016645]
[1766980681299,0.0111045,90139.0,90126.0,0.03016645]
[1766980682988,0.0111048,90137.0,90126.0,0.03016645]
[1766980683392,0.0111041,90142.0,90126.0,0.03016645]
[1766980683595,0.00016645,90149.0,90126.0,0.03016645]
[1766980683899,0.09456645,90149.0,90127.0,0.0111058]
[1766980684093,0.09456645,90149.0,90127.0,0.0411058]
[1766980684889,0.0111034,90148.0,90127.0,0.0411058]
[1766980685204,0.00221797,90173.0,90127.0,0.03]
[1766980685500,0.10312,90157.0,90128.0,0.205341]
[1766980685684,0.05584,90156.0,90128.0,0.235341]
[1766980686094,0.0111024,90156.0,90133.0,0.0111051]
[1766980686398,0.00467046,90152.0,90133.0,0.03]
[1766980686990,0.00467046,90152.0,90139.0,0.0111043]
[1766980687190,0.00467046,90152.0,90139.0,0.1244]
[1766980688801,0.00467046,90152.0,90140.0,0.05584]
[1766980689003,0.00467046,90152.0,90140.0,0.08584]
[1766980692403,0.011103,90151.0,90140.0,0.08584]
[1766980692596,0.00467046,90152.0,90140.0,0.08584]
[1766980695503,0.00467046,90152.0,90140.0,0.30546645]
[1766980695709,0.01172,90172.0,90140.0,0.30546645]
[1766980696007,0.09436,90171.0,90150.0,0.21962645]
[1766980696308,0.0111023,90157.0,90150.0,0.03]
[1766980697008,0.00016645,90163.0,90150.0,0.03]
[1766980697402,0.0111021,90158.0,90150.0,0.01]
[1766980697707,0.00016645,90163.0,90144.0,0.00016645]
[1766980697708,0.0111025,90156.0,90144.0,0.00016645]
[1766980697908,0.0111025,90156.0,90144.0,0.03016645]
[1766980701815,0.0111027,90154.0,90144.0,0.03016645]
[1766980702314,0.21962645,90160.0,90144.0,0.03016645]
[1766980703001,0.0110959,90209.0,90144.0,0.03016645]
[1766980703201,0.00401873,90248.0,90144.0,0.03016645]
[1766980703202,0.011098,90192.0,90174.0,0.4392529]
[1766980703405,0.0110949,90217.0,90174.0,0.4392529]
[1766980703406,0.0110968,90202.0,90180.0,0.4392529]
[1766980703607,0.21962645,90220.0,90192.0,0.21962645]
[1766980703907,0.0110953,90214.0,90190.0,0.21962645]
[1766980704205,0.0022165,90233.0,90193.0,0.00016635]
[1766980704411,0.0110939,90226.0,90193.0,0.01126415]
[1766980704613,0.0110943,90222.0,90193.0,0.00016635]
[1766980704804,0.09436,90221.0,90194.0,0.11086228]
[1766980705005,0.1502,90220.0,90194.0,0.14086228]
[1766980705206,0.09436,90219.0,90194.0,0.03]
[1766980705408,0.27414862,90230.0,90193.0,0.00016635]
[1766980705614,0.0110969,90201.0,90193.0,0.01016635]
[1766980705815,0.0110969,90201.0,90175.0,0.06692]
[1766980706015,0.0110971,90199.0,90175.0,0.07692]
[1766980706210,0.27414862,90220.0,90186.0,0.11085614]
[1766980706514,0.0110976,90195.0,90186.0,0.03]
[1766980706705,0.09436,90199.0,90186.0,0.03]
[1766980706907,0.0110976,90195.0,90186.0,0.03]
[1766980707416,0.09436,90199.0,90186.0,0.01]
[1766980707617,0.0110971,90199.0,90186.0,0.01]
[1766980707819,0.0943575,90198.0,90186.0,0.01]
[1766980708014,0.0617875,90198.0,90186.0,0.01]
[1766980709017,0.1502,90197.0,90186.0,0.01]
[1766980709218,0.27414862,90220.0,90186.0,0.01]
[1766980709219,0.05584,90198.0,90186.0,0.01]
[1766980709413,0.09432,90197.0,90186.0,0.01]
[1766980710415,0.05584,90196.0,90186.0,0.01]
[1766980710617,0.09432,90195.0,90186.0,0.01]
[1766980711212,0.0110971,90199.0,90186.0,0.01]
[1766980711521,0.27414862,90200.0,90175.0,0.01108]
[1766980711821,0.15016,90199.0,90175.0,0.04108]
[1766980712219,0.15016,90199.0,90176.0,0.0110998]
[1766980712522,0.00016635,90197.0,90179.0,0.0110995]
[1766980712719,0.00016635,90197.0,90179.0,0.03]
[1766980713811,0.00016635,90197.0,90180.0,0.0110994]
[1766980714013,0.00016635,90197.0,90183.0,0.011099]
[1766980714319,0.15012,90196.0,90185.0,0.0110987]